bitfinex/quotes_BTCUSD_20240629
["timestamp","ask_amount","ask_price","bid_price","bid_amount"]
[1719632437663,0.0938,60893.0,60889.0,0.02993281]
[1719632437664,0.0938,60890.0,60889.0,0.02993281]
[1719632437899,0.0938,60890.0,60889.0,0.20243281]
[1719632439111,0.0938,60890.0,60889.0,0.21443281]
[1719632439799,0.0938,60890.0,60889.0,0.20243281]
[1719632439999,0.0938,60890.0,60889.0,0.22143281]
[1719632440588,0.0938,60890.0,60889.0,0.21243281]
[1719632440834,0.0938,60890.0,60889.0,0.22343281]
[1719632441101,0.1,60893.0,60892.0,0.02993281]
[1719632441360,0.14266536,60894.0,60893.0,0.02993281]
[1719632441608,0.24266536,60894.0,60893.0,0.36477179]
[1719632442128,0.24266536,60894.0,60893.0,0.02993281]
[1719632443155,0.24266536,60894.0,60893.0,0.03693281]
[1719632443395,0.43149936,60894.0,60893.0,0.02993281]
[1719632443654,0.43149936,60894.0,60893.0,0.03393281]
[1719632443869,0.43149936,60894.0,60893.0,0.01393281]
[1719632444074,0.43149936,60894.0,60893.0,0.02993281]
[1719632444677,0.43142072,60894.0,60893.0,0.02993281]
[1719632445519,0.43142072,60894.0,60893.0,0.03993281]
[1719632445694,0.43142072,60894.0,60893.0,0.03593281]
[1719632445919,0.43142072,60894.0,60893.0,0.04293281]
[1719632446156,0.43142072,60894.0,60893.0,0.03693281]
[1719632446345,0.43142072,60894.0,60893.0,0.02993281]
[1719632446548,0.43142072,60894.0,60893.0,0.03793281]
[1719632448838,0.43142072,60894.0,60893.0,0.03393281]
[1719632449050,0.43142072,60894.0,60893.0,0.02993281]
[1719632449294,0.43142072,60894.0,60893.0,0.03093281]
[1719632450167,0.24258672,60894.0,60893.0,0.10533281]
[1719632450369,0.14878672,60894.0,60893.0,0.19673281]
[1719632450673,0.14258672,60894.0,60893.0,0.19673281]
[1719632450924,0.24258672,60894.0,60893.0,0.19673281]
[1719632451674,0.24250914,60894.0,60893.0,0.19573281]
[1719632451958,0.24250914,60894.0,60893.0,0.19673281]
[1719632452125,0.24250914,60894.0,60893.0,0.19873281]
[1719632454031,0.14870914,60894.0,60893.0,0.19873281]
[1719632454227,0.14250914,60894.0,60893.0,0.19873281]
[1719632454388,0.24250914,60894.0,60893.0,0.19873281]
[1719632456417,0.14870914,60894.0,60893.0,0.39194507]
[1719632456620,0.04870914,60894.0,60893.0,0.35201226]
[1719632456780,0.1,60894.0,60893.0,0.39194507]
[1719632459220,0.0938,60897.0,60896.0,0.37107179]
[1719632462392,0.0271701,60909.0,60897.0,0.0914]
[1719632462593,1.032703,60906.0,60898.0,0.03810718]
[1719632462898,0.0938,60899.0,60898.0,0.06803999]
[1719632463718,0.0938,60899.0,60898.0,0.24973999]
[1719632464656,0.0938,60899.0,60898.0,0.21163281]
[1719632464846,0.0938,60899.0,60898.0,0.22163281]
[1719632465395,0.0938,60899.0,60898.0,0.21963281]
[1719632465938,0.0938,60899.0,60898.0,0.22963281]
[1719632466451,0.0938,60899.0,60898.0,0.21963281]
[1719632466948,0.0938,60899.0,60898.0,0.22963281]
[1719632467084,0.09464,60899.0,60898.0,0.22963281]
[1719632467327,0.00084,60899.0,60898.0,0.39197179]
[1719632467532,0.09464,60899.0,60898.0,0.39197179]
[1719632468160,0.09464,60899.0,60898.0,0.38797179]
[1719632468605,0.09464,60899.0,60898.0,0.38197179]
[1719632469017,0.09464,60899.0,60898.0,0.37797179]
[1719632469395,0.09464,60899.0,60898.0,0.38597179]
[1719632470139,0.09464,60899.0,60898.0,0.38197179]
[1719632470296,0.09464,60899.0,60898.0,0.38597179]
[1719632470725,0.09464,60899.0,60898.0,0.37397179]
[1719632471277,0.09464,60899.0,60898.0,0.38697179]
[1719632471666,0.09464,60899.0,60898.0,0.38197179]
[1719632472000,0.09464,60899.0,60898.0,0.38997179]
[1719632472890,0.00084,60899.0,60898.0,0.44819172]
[1719632473867,0.00084,60899.0,60898.0,0.44019172]
[1719632474074,0.00084,60899.0,60898.0,0.44819172]
[1719632474457,0.00084,60899.0,60898.0,0.43219172]
[1719632474863,0.00084,60899.0,60898.0,0.44019172]
[1719632475325,0.00084,60899.0,60898.0,0.43219172]
[1719632475647,0.00906,60899.0,60898.0,0.44619172]
[1719632475914,0.00906,60899.0,60898.0,0.46019172]
[1719632479793,0.00906,60899.0,60898.0,0.42025891]
[1719632480117,0.00906,60899.0,60898.0,0.37203898]
[1719632481582,0.00906,60899.0,60898.0,0.61197179]
[1719632483577,0.00906,60899.0,60898.0,0.41197179]
[1719632484193,0.00906,60899.0,60898.0,0.61197179]
[1719632484399,0.00906,60899.0,60898.0,0.87927179]
[1719632484645,0.00084,60912.0,60911.0,0.03993281]
[1719632484862,0.00084,60912.0,60911.0,0.38307179]
[1719632485272,0.00084,60912.0,60911.0,0.19227179]
[1719632485442,0.09464,60912.0,60911.0,0.19227179]
[1719632485954,0.19464,60912.0,60911.0,0.19227179]
[1719632487995,0.19464,60912.0,60911.0,0.19627179]
[1719632488446,0.19464,60912.0,60911.0,0.19227179]
[1719632488820,0.19464,60912.0,60911.0,0.19627179]
[1719632488967,0.19464,60912.0,60911.0,0.19227179]
[1719632489369,0.19464,60912.0,60911.0,0.19627179]
[1719632490109,0.19464,60912.0,60911.0,0.20027179]
[1719632490302,0.10084,60912.0,60911.0,0.20027179]
[1719632490507,0.10084,60912.0,60911.0,0.23837897]
[1719632490667,0.19464,60912.0,60911.0,0.20027179]
[1719632490867,0.10084,60912.0,60911.0,0.20027179]
[1719632491109,0.19464,60912.0,60911.0,0.20027179]
[1719632491368,0.10084,60912.0,60911.0,0.20944616]
[1719632491535,0.10084,60912.0,60911.0,0.23937897]
[1719632491536,0.19464,60912.0,60911.0,0.23937897]
[1719632492069,0.19464,60912.0,60911.0,0.19627179]
[1719632492278,0.19464,60912.0,60911.0,0.19227179]
[1719632492681,0.19464,60912.0,60911.0,0.19927179]
[1719632493338,0.10084,60912.0,60911.0,0.19927179]
[1719632493519,0.10084,60912.0,60911.0,0.20527179]
[1719632493692,0.10084,60912.0,60911.0,0.38607179]
[1719632493903,0.19464,60912.0,60911.0,0.38607179]
[1719632495312,0.10084,60912.0,60911.0,0.38607179]
[1719632498969,0.19464,60912.0,60911.0,0.38607179]
[1719632499377,0.10084,60912.0,60911.0,0.38607179]
[1719632499650,0.09464,60912.0,60911.0,0.35613898]
[1719632499857,0.19464,60912.0,60911.0,0.38607179]
[1719632503831,0.10084,60912.0,60911.0,0.38607179]
[1719632504068,0.10084,60912.0,60911.0,0.35613898]
[1719632504543,0.10084,60912.0,60911.0,0.38607179]
[1719632504799,0.10084,60912.0,60911.0,0.43380932]
[1719632507371,0.10084,60912.0,60911.0,0.38607179]
[1719632508832,0.10084,60912.0,60911.0,0.39607179]
[1719632509082,0.10084,60912.0,60911.0,0.38607179]
[1719632510098,0.10084,60912.0,60911.0,0.39607179]
[1719632510322,0.10084,60912.0,60911.0,0.38607179]
[1719632511300,0.10084,60912.0,60911.0,0.35613898]
[1719632512021,0.10084,60912.0,60911.0,0.38607179]
[1719632513351,0.10084,60912.0,60911.0,0.39607179]
[1719632513997,0.10084,60912.0,60911.0,0.38607179]
[1719632514512,0.17583041,60921.0,60920.0,0.00993281]
[1719632514717,0.0938,60921.0,60920.0,0.00993281]
[1719632515137,0.676782,60921.0,60920.0,0.00993281]
[1719632515356,0.652091,60921.0,60920.0,0.00993281]
[1719632515765,0.67861806,60921.0,60920.0,0.00993281]
[1719632516159,0.652091,60921.0,60920.0,0.00993281]
[1719632516385,0.63007558,60921.0,60920.0,0.00993281]
[1719632516764,0.73007558,60921.0,60920.0,0.00993281]
[1719632518796,1.02697058,60921.0,60920.0,0.00993281]
[1719632518996,1.05731458,60921.0,60920.0,0.00993281]
[1719632519408,1.0574137,60921.0,60920.0,0.00993281]
[1719632520571,0.8066137,60921.0,60920.0,0.00993281]
[1719632520743,0.3641907,60921.0,60920.0,0.02993281]
[1719632520886,0.2203197,60921.0,60920.0,0.02993281]
[1719632521769,0.1938,60921.0,60920.0,0.02993281]
[1719632522375,0.1,60921.0,60920.0,0.02993281]
[1719632522644,0.1938,60921.0,60920.0,0.02993281]
[1719632523165,0.0938,60921.0,60920.0,0.02993281]
[1719632523816,0.1,60925.0,60924.0,0.02993281]
[1719632524049,0.900864,60925.0,60924.0,0.02993281]
[1719632524263,1.000864,60925.0,60924.0,0.00993281]
[1719632524436,1.000864,60925.0,60923.0,0.00993281]
[1719632524667,0.96708094,60924.0,60923.0,0.00993281]
[1719632524973,0.940294,60924.0,60923.0,0.00993281]
[1719632525118,0.96803159,60924.0,60923.0,0.00993281]
[1719632526582,0.88895959,60924.0,60923.0,0.00993281]
[1719632527177,0.88895959,60924.0,60923.0,0.01093281]
[1719632527378,0.88895959,60924.0,60923.0,0.01193281]
[1719632528223,0.8890369,60924.0,60923.0,0.01193281]
[1719632529173,0.9828369,60924.0,60923.0,0.0118884]
[1719632529771,0.9828369,60924.0,60923.0,0.0108884]
[1719632530022,0.9828369,60924.0,60923.0,0.0118884]
[1719632530222,0.9828369,60924.0,60923.0,0.0108884]
[1719632531397,0.98333547,60924.0,60923.0,0.001]
[1719632531597,0.98333547,60924.0,60923.0,0.0098884]
[1719632533133,0.6549071,60924.0,60923.0,0.0098884]
[1719632534583,0.62659363,60924.0,60923.0,0.0098884]
[1719632534825,0.6549208,60924.0,60920.0,0.0098884]
[1719632535039,0.0938,60921.0,60920.0,0.0098884]
[1719632535446,0.427894,60921.0,60920.0,0.0098884]
[1719632535615,0.434094,60921.0,60920.0,0.0298884]
[1719632535857,0.457518,60921.0,60920.0,0.0298884]
[1719632536062,0.363718,60921.0,60920.0,0.0098884]
[1719632536233,0.457518,60921.0,60920.0,0.0098884]
[1719632537084,0.457518,60921.0,60920.0,0.0298884]
[1719632537211,0.457518,60921.0,60920.0,0.0380484]
[1719632537616,0.498462,60921.0,60920.0,0.0400484]
[1719632538018,0.1938,60921.0,60920.0,0.0420484]
[1719632538821,0.1,60921.0,60920.0,0.0420484]
[1719632539020,0.1,60921.0,60920.0,0.2187484]
[1719632539203,0.00838,60926.0,60925.0,0.2085884]
[1719632539413,0.10218,60926.0,60925.0,0.2085884]
[1719632540500,0.20218,60926.0,60925.0,0.2085884]
[1719632541213,0.20218,60926.0,60925.0,0.1885884]
[1719632541348,0.20218,60926.0,60925.0,0.1006]
[1719632541701,0.20218,60926.0,60925.0,0.0098884]
[1719632541907,0.20218,60926.0,60923.0,0.0781]
[1719632541908,0.569972,60926.0,60923.0,0.1104884]
[1719632542112,0.24302301,60924.0,60923.0,0.0098884]
[1719632542316,0.34302301,60924.0,60921.0,0.1006]
[1719632542465,0.0938,60922.0,60921.0,0.1006]
[1719632542669,0.0938,60922.0,60921.0,0.1304884]
[1719632543797,0.0938,60922.0,60921.0,0.1374884]
[1719632544610,0.0938,60922.0,60921.0,0.1304884]
[1719632544611,0.09371671,60922.0,60921.0,0.1304884]
[1719632545189,0.09371671,60922.0,60921.0,0.1374884]
[1719632546058,0.09371671,60922.0,60921.0,0.1444884]
[1719632546801,0.09371671,60922.0,60921.0,0.1244884]
[1719632551994,0.09371671,60922.0,60921.0,0.1444884]
[1719632552839,0.49598671,60922.0,60921.0,0.014]
[1719632553044,1.02471971,60922.0,60921.0,0.014]
[1719632553380,0.52928033,60922.0,60921.0,0.014]
[1719632553518,0.40329742,60922.0,60921.0,0.014]
[1719632553724,0.486371,60922.0,60921.0,0.014]
[1719632553925,0.442582,60922.0,60921.0,0.0238884]
[1719632554124,0.1938,60922.0,60921.0,0.0438884]
[1719632554892,0.0938,60922.0,60921.0,0.0438884]
[1719632555883,0.0938,60922.0,60921.0,0.06649324]
[1719632556056,0.1,60924.0,60923.0,0.0298884]
[1719632556272,0.1938,60924.0,60923.0,0.0298884]
[1719632556471,0.1938,60924.0,60923.0,0.2038884]
[1719632557107,0.0938,60924.0,60923.0,0.2038884]
[1719632557793,0.34293239,60925.0,60923.0,0.2128884]
[1719632557976,0.0938,60924.0,60923.0,0.2128884]
[1719632558592,0.0938,60924.0,60923.0,0.2078884]
[1719632559006,0.0938,60924.0,60923.0,0.2088884]
[1719632559360,0.34293239,60925.0,60924.0,0.0298884]
[1719632559559,0.43673239,60925.0,60924.0,0.0298884]
[1719632559765,0.19362166,60925.0,60924.0,0.0298884]
[1719632560105,0.19362166,60925.0,60924.0,0.0098884]
[1719632560306,0.19362166,60925.0,60923.0,0.1868884]
[1719632560509,0.43655523,60925.0,60924.0,0.0098884]
[1719632560934,0.43655523,60925.0,60924.0,0.0108884]
[1719632561275,0.43655523,60925.0,60924.0,0.0098884]
[1719632563063,0.43655523,60925.0,60923.0,0.174]
[1719632563272,0.43655523,60925.0,60924.0,0.0098884]
[1719632563486,0.43656116,60925.0,60924.0,0.0098884]
[1719632564058,0.43740116,60925.0,60924.0,0.0098884]
[1719632564284,0.43740116,60925.0,60923.0,0.096]
[1719632564942,0.43740116,60925.0,60923.0,0.1058884]
[1719632566281,0.34360116,60925.0,60923.0,0.1058884]
[1719632566480,0.0938,60924.0,60923.0,0.096]
[1719632566901,0.0938,60924.0,60923.0,0.1747]
[1719632567811,0.0938,60924.0,60923.0,0.1757]
[1719632568776,0.0938,60924.0,60923.0,0.1767]
[1719632569009,0.0938,60924.0,60923.0,0.2065884]
[1719632570135,0.0938,60924.0,60923.0,0.2055884]
[1719632570344,0.0938,60924.0,60923.0,0.29339462]
[1719632570571,0.34361179,60925.0,60924.0,0.0298884]
[1719632570572,0.00084,60925.0,60924.0,0.0298884]
[1719632570807,0.00084,60925.0,60924.0,0.37402738]
[1719632572416,0.00084,60925.0,60924.0,0.38802738]
[1719632572804,0.00084,60925.0,60924.0,0.40202738]
[1719632573005,0.00084,60925.0,60924.0,0.37402738]
[1719632573451,0.00084,60925.0,60924.0,0.38602738]
[1719632574642,0.00084,60925.0,60924.0,0.40002738]
[1719632575071,0.00084,60925.0,60924.0,0.38602738]
[1719632575860,0.00084,60925.0,60924.0,0.39802738]
[1719632576489,0.09464,60925.0,60924.0,0.39802738]
[1719632578801,0.22961426,60936.0,60932.0,0.0098884]
[1719632579013,0.0938,60933.0,60932.0,0.0098884]
[1719632579377,0.726234,60933.0,60932.0,0.0098884]
[1719632580220,0.75124723,60933.0,60932.0,0.0098884]
[1719632580421,0.70913023,60933.0,60932.0,0.0098884]
[1719632580825,0.80913023,60933.0,60932.0,0.0118884]
[1719632581810,0.80913023,60933.0,60932.0,0.0138884]
[1719632583684,0.80913023,60933.0,60932.0,0.004]
[1719632584711,0.80913023,60933.0,60932.0,0.002]
[1719632585125,0.784117,60933.0,60932.0,0.002]
[1719632585235,0.80942876,60933.0,60932.0,0.002]
[1719632586089,0.89120964,60933.0,60932.0,0.002]
[1719632586462,0.89120964,60933.0,60921.0,0.000924]
[1719632586631,0.0938,60922.0,60921.0,0.000924]
[1719632586838,1.596766,60922.0,60921.0,0.000924]
[1719632587295,1.83956377,60922.0,60921.0,0.000924]
[1719632587517,0.621777,60922.0,60921.0,0.0108124]
[1719632587849,0.64708876,60922.0,60921.0,0.0108124]
[1719632588071,0.64708876,60922.0,60921.0,0.0138124]
[1719632588270,0.64719015,60922.0,60921.0,0.0138124]
[1719632588644,0.74719015,60922.0,60921.0,0.0138124]
[1719632589024,0.74719015,60922.0,60921.0,0.0168124]
[1719632589602,0.64719015,60922.0,60921.0,0.0168124]
[1719632590839,0.64719015,60922.0,60921.0,0.01676707]
[1719632591073,0.64719015,60922.0,60921.0,0.03676707]
[1719632591507,0.64707603,60922.0,60921.0,0.03676707]
[1719632591708,0.11909903,60922.0,60921.0,0.03676707]
[1719632591995,0.0938,60922.0,60921.0,0.00687867]
[1719632592241,1.330854,60922.0,60921.0,0.00687867]
[1719632592611,1.154547,60922.0,60921.0,0.00687867]
[1719632593331,1.17984273,60922.0,60921.0,0.00687867]
[1719632593735,1.17984273,60922.0,60921.0,0.00387867]
[1719632593922,1.17984273,60922.0,60921.0,0.01376707]
[1719632594586,1.154547,60922.0,60921.0,0.01376707]
[1719632594789,1.04810315,60922.0,60921.0,0.01076707]
[1719632594980,1.04810315,60922.0,60921.0,0.01276707]
[1719632595607,1.04810315,60922.0,60921.0,0.01076707]
[1719632595808,1.01206615,60922.0,60921.0,0.01076707]
[1719632596737,0.93014615,60922.0,60921.0,0.03076707]
[1719632596938,0.62980115,60922.0,60921.0,0.00087867]
[1719632597140,0.62980115,60922.0,60921.0,0.03076707]
[1719632597430,0.604031,60922.0,60921.0,0.03076707]
[1719632598292,0.361531,60922.0,60921.0,0.03076707]
[1719632598532,0.24354763,60925.0,60922.0,0.2132884]
[1719632598533,0.00084,60925.0,60922.0,0.2132884]
[1719632598734,0.00084,60925.0,60923.0,0.0298884]
[1719632598735,0.27360112,60924.0,60923.0,0.0298884]
[1719632598980,0.46740112,60924.0,60923.0,0.0298884]
[1719632599943,0.4415,60924.0,60923.0,0.0298884]
[1719632601906,0.44144067,60924.0,60923.0,0.0298884]
[1719632605132,0.463112,60924.0,60923.0,0.0298884]
[1719632607188,0.383112,60924.0,60923.0,0.0298884]
[1719632607391,0.1938,60924.0,60923.0,0.0298884]
[1719632607609,0.194412,60924.0,60923.0,0.0298884]
[1719632607811,0.294412,60924.0,60923.0,0.0298884]
[1719632609371,0.294412,60924.0,60923.0,0.1298884]
[1719632610033,0.294412,60924.0,60923.0,0.1098884]
[1719632610237,0.294412,60924.0,60923.0,0.1298884]
[1719632613479,0.294412,60924.0,60923.0,0.1098884]
[1719632613828,0.294412,60924.0,60923.0,0.1298884]
[1719632616424,0.1938,60924.0,60923.0,0.1298884]
[1719632616620,0.358175,60924.0,60923.0,0.1298884]
[1719632616826,0.458175,60924.0,60923.0,0.1298884]
[1719632622447,0.44637,60924.0,60923.0,0.1298884]
[1719632628484,0.44637,60924.0,60923.0,0.1308124]
[1719632628685,0.44721,60924.0,60923.0,0.1308124]
[1719632631156,0.69019519,60924.0,60923.0,0.000924]
[1719632631389,0.69019519,60924.0,60923.0,0.0108124]
[1719632631621,0.71559285,60924.0,60923.0,0.0108124]
[1719632631999,0.71559285,60924.0,60923.0,0.000924]
[1719632632221,0.71559285,60924.0,60923.0,0.0108124]
[1719632633357,0.69020709,60924.0,60923.0,0.0108124]
[1719632633484,0.71435533,60924.0,60923.0,0.0108124]
[1719632634089,0.50332897,60924.0,60923.0,0.0108124]
[1719632634384,0.36178533,60924.0,60923.0,0.0108124]
[1719632634639,1.12453824,60924.0,60923.0,0.0108124]
[1719632634843,1.16215324,60924.0,60923.0,0.0108124]
[1719632636502,1.238005,60924.0,60923.0,0.000924]
[1719632636697,1.26224533,60924.0,60923.0,0.000924]
[1719632636873,1.238005,60924.0,60923.0,0.000924]
[1719632637075,1.26204451,60924.0,60923.0,0.000924]
[1719632638098,1.26196008,60924.0,60923.0,0.000924]
[1719632639776,1.26238615,60924.0,60923.0,0.000924]
[1719632642366,1.26238615,60924.0,60923.0,0.0108124]
[1719632643431,1.26238615,60924.0,60923.0,0.001056]
[1719632645435,1.26271686,60924.0,60923.0,0.001056]
[1719632645989,1.26263593,60924.0,60923.0,0.0109444]
[1719632646148,1.26263593,60924.0,60923.0,0.001056]
[1719632647814,1.26263593,60924.0,60923.0,0.0109444]
[1719632648641,1.26260954,60924.0,60923.0,0.0109444]
[1719632650985,1.26260954,60924.0,60923.0,0.01087992]
[1719632651917,1.26271607,60924.0,60923.0,0.01087992]
[1719632655180,1.26271886,60924.0,60923.0,0.01087992]
[1719632656986,0.21935386,60924.0,60923.0,0.01087992]
[1719632657400,1.75054686,60924.0,60923.0,0.01087992]
[1719632657870,1.73053386,60924.0,60923.0,0.01087992]
[1719632658449,1.73052615,60924.0,60923.0,0.01087992]
[1719632659086,1.7305063,60924.0,60923.0,0.01087992]
[1719632660726,1.7305063,60924.0,60923.0,0.00099152]
[1719632661322,1.46909306,60924.0,60923.0,0.00099152]
[1719632661504,1.56296412,60924.0,60923.0,0.00099152]
[1719632661704,1.53812233,60924.0,60923.0,0.00099152]
[1719632661906,1.56296472,60924.0,60923.0,0.00099152]
[1719632663403,1.66296472,60924.0,60923.0,0.00099152]
[1719632664839,1.66252556,60924.0,60923.0,0.00099152]
[1719632667716,1.66362556,60924.0,60923.0,0.00099152]
[1719632667954,0.002,60923.0,60912.0,0.0982]
[1719632668122,0.24300915,60916.0,60913.0,0.0098884]
[1719632668320,0.24300915,60916.0,60912.0,0.0982]
[1719632668321,0.33680915,60914.0,60912.0,0.0982]
[1719632668551,1.24098,60913.0,60912.0,0.0982]
[1719632668790,1.24098,60913.0,60912.0,0.1080884]
[1719632668925,1.24098,60913.0,60912.0,0.0982]
[1719632669962,1.2145607,60913.0,60912.0,0.1080884]
[1719632670164,1.2145607,60913.0,60912.0,0.0982]
[1719632670385,1.2145607,60913.0,60911.0,0.0098884]
[1719632670581,1.66125777,60912.0,60911.0,0.1080884]
[1719632670999,1.66122813,60912.0,60911.0,0.1080884]
[1719632671206,1.14125858,60912.0,60911.0,0.1080884]
[1719632671424,1.14125896,60912.0,60911.0,0.1080884]
[1719632671649,1.14125896,60912.0,60911.0,0.1150884]
[1719632671850,1.14125896,60912.0,60911.0,0.1080884]
[1719632672466,0.89828845,60912.0,60911.0,0.1080884]
[1719632672799,1.14125896,60912.0,60911.0,0.1170884]
[1719632673072,1.14125896,60912.0,60911.0,0.1250884]
[1719632674182,0.89828845,60912.0,60911.0,0.1450884]
[1719632674486,0.89828845,60912.0,60911.0,0.2033884]
[1719632674672,0.89851188,60912.0,60911.0,0.2033884]
[1719632676278,0.89851188,60912.0,60911.0,0.2233884]
[1719632676486,0.71657388,60912.0,60911.0,0.2233884]
[1719632677091,0.71657388,60912.0,60911.0,0.2033884]
[1719632677525,0.71657388,60912.0,60911.0,0.2233884]
[1719632677753,0.684728,60912.0,60911.0,0.2233884]
[1719632677955,0.69884418,60912.0,60911.0,0.2233884]
[1719632678177,0.667141,60912.0,60911.0,0.2233884]
[1719632678308,0.69893111,60912.0,60911.0,0.2233884]
[1719632678910,0.69893111,60912.0,60911.0,0.2033884]
[1719632679594,0.69893111,60912.0,60911.0,0.2233884]
[1719632680036,0.69893111,60912.0,60911.0,0.1935]
[1719632680373,0.69893111,60912.0,60911.0,0.19345622]
[1719632680938,0.667141,60912.0,60911.0,0.19345622]
[1719632681152,0.69885205,60912.0,60911.0,0.19345622]
[1719632682105,0.69885205,60912.0,60911.0,0.20334462]
[1719632684057,0.69885205,60912.0,60911.0,0.2310884]
[1719632684265,0.12536957,60912.0,60911.0,0.2310884]
[1719632685814,0.0938,60912.0,60911.0,0.2012]
[1719632687458,0.320978,60912.0,60911.0,0.2012]
[1719632687657,0.320978,60912.0,60911.0,0.2310884]
[1719632688944,0.0938,60912.0,60911.0,0.2310884]
[1719632689340,0.3427642,60917.0,60916.0,0.0298884]
[1719632689561,0.926922,60917.0,60916.0,0.2140884]
[1719632689761,1.005711,60917.0,60916.0,0.2140884]
[1719632690879,1.03748421,60917.0,60916.0,0.2160884]
[1719632691228,1.28026114,60917.0,60916.0,0.2180884]
[1719632692363,1.28026114,60917.0,60916.0,0.1882]
[1719632693362,1.28026114,60917.0,60916.0,0.2180884]
[1719632693807,1.24850539,60917.0,60916.0,0.2180884]
[1719632694014,1.28034911,60917.0,60916.0,0.2180884]
[1719632694384,1.28034911,60917.0,60916.0,0.1980884]
[1719632694803,1.28034911,60917.0,60916.0,0.2180884]
[1719632697738,1.28037972,60917.0,60916.0,0.2180884]
[1719632700293,1.24856516,60917.0,60916.0,0.2180884]
[1719632700494,1.28023874,60917.0,60916.0,0.2180884]
[1719632700884,1.21172474,60917.0,60916.0,0.2180884]
[1719632701735,1.21172474,60917.0,60916.0,0.1980884]
[1719632702206,1.77793474,60917.0,60916.0,0.1980884]
[1719632702422,1.35985474,60917.0,60916.0,0.1980884]
[1719632704406,1.11694599,60917.0,60916.0,0.004]
[1719632704811,1.11694599,60917.0,60916.0,0.0138884]
[1719632705305,1.11694599,60917.0,60916.0,0.004]
[1719632705877,1.1171284,60917.0,60916.0,0.004]
[1719632707098,1.1171284,60917.0,60916.0,0.0138884]
[1719632708610,1.1171284,60917.0,60916.0,0.004]
[1719632708859,1.1171284,60917.0,60916.0,0.0138884]
[1719632709209,1.11728437,60917.0,60916.0,0.0138884]
[1719632709793,1.11751944,60917.0,60916.0,0.0138884]
[1719632710165,1.11751944,60917.0,60916.0,0.004]
[1719632711005,1.11751944,60917.0,60916.0,0.0138884]
[1719632711914,1.11751944,60917.0,60916.0,0.004]
[1719632712263,1.11731871,60917.0,60916.0,0.004]
[1719632712463,1.19419736,60917.0,60911.0,0.000924]
[1719632712670,0.0938,60913.0,60911.0,0.000924]
[1719632713078,1.887841,60912.0,60911.0,0.000924]
[1719632713299,1.987841,60912.0,60911.0,0.000924]
[1719632713719,1.987841,60912.0,60911.0,0.002924]
[1719632713928,2.01983661,60912.0,60911.0,0.002924]
[1719632714469,2.01983661,60912.0,60911.0,0.004924]
[1719632714888,2.01983661,60912.0,60911.0,0.000924]
[1719632715124,2.01983661,60912.0,60911.0,0.008924]
[1719632715369,1.987841,60912.0,60911.0,0.016924]
[1719632715588,2.02667537,60912.0,60911.0,0.016924]
[1719632717224,2.18900908,60912.0,60911.0,0.0268124]
[1719632717435,1.76131808,60912.0,60911.0,0.0268124]
[1719632717640,1.74144908,60912.0,60911.0,0.0268124]
[1719632718732,1.43647171,60912.0,60911.0,0.0268124]
[1719632719052,1.47530093,60912.0,60911.0,0.0268124]
[1719632719380,1.31296722,60912.0,60911.0,0.0268124]
[1719632721601,1.51512022,60912.0,60911.0,0.0268124]
[1719632721800,1.44932022,60912.0,60911.0,0.0268124]
[1719632722202,1.4492879,60912.0,60911.0,0.0268124]
[1719632722601,1.410491,60912.0,60911.0,0.0268124]
[1719632722977,1.44922465,60912.0,60911.0,0.0268124]
[1719632723780,1.41315465,60912.0,60911.0,0.0268124]
[1719632724021,1.37202665,60912.0,60911.0,0.0268124]
[1719632724777,0.87332665,60912.0,60911.0,0.04674141]
[1719632724983,0.79130065,60912.0,60911.0,0.04674141]
[1719632725226,0.752567,60912.0,60911.0,0.04674141]
[1719632725423,0.79135236,60912.0,60911.0,0.04674141]
[1719632726302,0.64265236,60912.0,60911.0,0.04674141]
[1719632726750,0.603867,60912.0,60911.0,0.04674141]
[1719632727362,0.538067,60912.0,60911.0,0.04674141]
[1719632728688,0.31467054,60912.0,60911.0,0.04674141]
[1719632728889,0.0442689,60912.0,60911.0,0.04674141]
[1719632729030,0.5125129,60912.0,60911.0,0.04674141]
[1719632729384,0.9143789,60912.0,60911.0,0.04674141]
[1719632729587,0.0442689,60912.0,60911.0,0.04674141]
[1719632730209,1.0171749,60912.0,60911.0,0.04674141]
[1719632730613,1.1171749,60912.0,60911.0,0.04674141]
[1719632731380,1.15594693,60912.0,60911.0,0.04674141]
[1719632731726,1.15571451,60912.0,60911.0,0.04674141]
[1719632732285,1.15565699,60912.0,60911.0,0.04674141]
[1719632732511,0.96522299,60912.0,60911.0,0.04674141]
[1719632733026,0.96522299,60912.0,60911.0,0.02674141]
[1719632733430,0.96522299,60912.0,60911.0,0.04674141]
[1719632734027,0.96517753,60912.0,60911.0,0.04674141]
[1719632734912,0.96512732,60912.0,60911.0,0.04674141]
[1719632735400,0.92668338,60912.0,60911.0,0.04674141]
[1719632735533,0.96512747,60912.0,60911.0,0.04674141]
[1719632736750,0.92091609,60912.0,60911.0,0.04674141]
[1719632736953,0.65664909,60912.0,60911.0,0.04674141]
[1719632738088,1.10568454,60912.0,60911.0,0.04674141]
[1719632740073,1.03988454,60912.0,60911.0,0.23404141]
[1719632740277,0.66985454,60912.0,60911.0,0.23404141]
[1719632741389,0.66983007,60912.0,60911.0,0.23404141]
[1719632744135,0.91285873,60912.0,60911.0,0.23404141]
[1719632744549,0.9128174,60912.0,60911.0,0.23404141]
[1719632744966,0.66978874,60912.0,60911.0,0.23404141]
[1719632745315,0.91282757,60912.0,60911.0,0.23404141]
[1719632746281,0.66978874,60912.0,60911.0,0.23404141]
[1719632746729,0.91283319,60912.0,60911.0,0.23404141]
[1719632747138,0.66978874,60912.0,60911.0,0.23404141]
[1719632747313,0.91283171,60912.0,60911.0,0.23404141]
[1719632747715,0.66975014,60912.0,60911.0,0.23404141]
[1719632748200,0.6697643,60912.0,60911.0,0.23404141]
[1719632750102,0.6697643,60912.0,60911.0,0.21404141]
[1719632750545,0.6697643,60912.0,60911.0,0.23404141]
[1719632750751,0.631476,60912.0,60911.0,0.23404141]
[1719632750921,0.66980813,60912.0,60911.0,0.23404141]
[1719632754069,0.66988764,60912.0,60911.0,0.23404141]
[1719632755212,0.66988764,60912.0,60911.0,0.21404141]
[1719632756998,0.67072764,60912.0,60911.0,0.21404141]
[1719632760440,0.632316,60912.0,60911.0,0.21404141]
[1719632760640,0.67053992,60912.0,60911.0,0.21404141]
[1719632760850,0.67053992,60912.0,60911.0,0.23404141]
[1719632761196,0.43033002,60912.0,60911.0,0.23404141]
[1719632761428,0.52413002,60912.0,60911.0,0.23404141]
[1719632762525,0.19464,60912.0,60911.0,0.23404141]
[1719632762736,0.09464,60912.0,60911.0,0.23404141]
[1719632762932,0.00084,60912.0,60911.0,0.23404141]